[Event "*** Biggest EVER Titled Tuesday"]
[Site "Chess.com"]
[Date "2018.04.17"]
[Round "6"]
[White "Daniela_Movileanu"]
[Black "AlexZambrano"]
[Result "0-1"]
[WhiteElo "2373"]
[BlackElo "2357"]
[TimeControl "180+2"]
[EndTime "14:19:44 PDT"]
[Termination "AlexZambrano won by resignation"]

1. e4 {[%clk 0:03:01.9]} 1... e6 {[%clk 0:02:48.6]} 2. d3 {[%clk 0:02:57.2]}
2... d5 {[%clk 0:02:48.7]} 3. Nd2 {[%clk 0:02:59.1]} 3... Nf6 {[%clk 0:02:47.7]}
4. e5 {[%clk 0:02:56.4]} 4... Nfd7 {[%clk 0:02:48.1]} 5. Ngf3 {[%clk 0:02:55.5]}
5... c5 {[%clk 0:02:47.6]} 6. g3 {[%clk 0:02:56.3]} 6... Nc6 {[%clk 0:02:40.9]}
7. Qe2 {[%clk 0:02:57.2]} 7... Qc7 {[%clk 0:02:40]} 8. Bg2 {[%clk 0:02:46.9]}
8... Ncxe5 {[%clk 0:02:40]} 9. Nxe5 {[%clk 0:02:47.7]} 9... Qxe5 {[%clk
0:02:39.8]} 10. Qxe5 {[%clk 0:02:42.8]} 10... Nxe5 {[%clk 0:02:40.6]} 11. O-O
{[%clk 0:02:44.7]} 11... Be7 {[%clk 0:02:38.7]} 12. Re1 {[%clk 0:02:44.9]} 12...
Nc6 {[%clk 0:02:38.8]} 13. f4 {[%clk 0:02:41.4]} 13... O-O {[%clk 0:02:34.3]}
14. Nf3 {[%clk 0:02:42.3]} 14... Bf6 {[%clk 0:02:33.9]} 15. c3 {[%clk
0:02:43.4]} 15... b6 {[%clk 0:02:32.4]} 16. Rb1 {[%clk 0:02:44.3]} 16... Ba6
{[%clk 0:02:32.7]} 17. Rd1 {[%clk 0:02:42.8]} 17... Bb7 {[%clk 0:02:27.3]} 18.
Bd2 {[%clk 0:02:42.4]} 18... Rac8 {[%clk 0:02:27.4]} 19. b4 {[%clk 0:02:41.6]}
19... cxb4 {[%clk 0:02:27.2]} 20. cxb4 {[%clk 0:02:43.5]} 20... Nd4 {[%clk
0:02:19.9]} 21. Be3 {[%clk 0:02:44.1]} 21... Ne2+ {[%clk 0:02:19.1]} 22. Kf2
{[%clk 0:02:43.8]} 22... Nc3 {[%clk 0:02:20.2]} 23. Ne5 {[%clk 0:02:39.6]} 23...
Nxb1 {[%clk 0:02:14.5]} 24. Rxb1 {[%clk 0:02:40.4]} 24... Rc2+ {[%clk
0:02:15.1]} 25. Kf1 {[%clk 0:02:41.3]} 25... Bxe5 {[%clk 0:02:10.6]} 26. fxe5
{[%clk 0:02:41.9]} 26... Rfc8 {[%clk 0:02:08.1]} 27. a4 {[%clk 0:02:37.1]} 27...
Ra2 {[%clk 0:02:04.5]} 28. a5 {[%clk 0:02:36.7]} 28... Rcc2 {[%clk 0:02:02.3]}
29. Bf3 {[%clk 0:02:36.1]} 29... Ba6 {[%clk 0:02:01]} 30. b5 {[%clk 0:02:35.9]}
30... Bb7 {[%clk 0:01:57.2]} 31. axb6 {[%clk 0:02:37]} 31... axb6 {[%clk
0:01:57.5]} 32. Bxb6 {[%clk 0:02:37.8]} 32... Rab2 {[%clk 0:01:57.5]} 33. Ra1
{[%clk 0:02:30.1]} 33... Rxb5 {[%clk 0:01:57.5]} 34. Be3 {[%clk 0:02:30.5]}
34... h6 {[%clk 0:01:53]} 35. h4 {[%clk 0:02:29.8]} 35... d4 {[%clk 0:01:34.7]}
36. Bxb7 {[%clk 0:02:23.2]} 36... dxe3 {[%clk 0:01:35.3]} 37. Bg2 {[%clk
0:02:23.8]} 37... Rf2+ {[%clk 0:01:34.5]} 38. Kg1 {[%clk 0:02:24.4]} 38... Rbb2
{[%clk 0:01:35.3]} 39. Be4 {[%clk 0:02:25.2]} 39... g6 {[%clk 0:01:34.4]} 40. h5
{[%clk 0:02:24.5]} 40... g5 {[%clk 0:01:33.1]} 0-1

[Event "*** Biggest EVER Titled Tuesday"]
[Site "Chess.com"]
[Date "2018.04.17"]
[Round "6"]
[White "Vusatiuk_Vladimir"]
[Black "Marcin"]
[Result "0-1"]
[WhiteElo "2204"]
[BlackElo "2293"]
[TimeControl "180+2"]
[EndTime "14:19:46 PDT"]
[Termination "Marcin won by resignation"]

1. e4 {[%clk 0:03:01.9]} 1... c5 {[%clk 0:03:00.4]} 2. Nc3 {[%clk 0:03:01.9]}
2... Nc6 {[%clk 0:03:00]} 3. f4 {[%clk 0:03:02.4]} 3... g6 {[%clk 0:03:00.9]} 4.
Nf3 {[%clk 0:03:02.1]} 4... Bg7 {[%clk 0:03:01.9]} 5. Bb5 {[%clk 0:03:02.6]}
5... d6 {[%clk 0:02:53.9]} 6. Bxc6+ {[%clk 0:03:02.8]} 6... bxc6 {[%clk
0:02:54.8]} 7. d3 {[%clk 0:03:04.3]} 7... Bg4 {[%clk 0:02:52.8]} 8. O-O {[%clk
0:03:05.2]} 8... Nf6 {[%clk 0:02:53.7]} 9. Qe1 {[%clk 0:03:05.9]} 9... O-O
{[%clk 0:02:54.4]} 10. Qh4 {[%clk 0:03:06.9]} 10... Bxf3 {[%clk 0:02:53.6]} 11.
Rxf3 {[%clk 0:03:07.6]} 11... Rb8 {[%clk 0:02:55.1]} 12. f5 {[%clk 0:03:07.9]}
12... c4 {[%clk 0:02:43]} 13. Bh6 {[%clk 0:03:06.8]} 13... cxd3 {[%clk
0:02:39.6]} 14. Bxg7 {[%clk 0:02:58.3]} 14... Kxg7 {[%clk 0:02:40.5]} 15. cxd3
{[%clk 0:02:59.1]} 15... Qb6+ {[%clk 0:02:41.2]} 16. Rf2 {[%clk 0:03:00.3]}
16... Qd4 {[%clk 0:02:39.1]} 17. Qg3 {[%clk 0:02:30.4]} 17... Rxb2 {[%clk
0:02:36.9]} 18. Rc1 {[%clk 0:01:47.9]} 18... Rfb8 {[%clk 0:02:31.5]} 19. fxg6
{[%clk 0:01:41.8]} 19... hxg6 {[%clk 0:02:31.8]} 20. Nd1 {[%clk 0:01:36.1]}
20... Rxf2 {[%clk 0:02:32.5]} 21. Nxf2 {[%clk 0:01:37.3]} 21... Rb2 {[%clk
0:02:29.8]} 22. a3 {[%clk 0:01:38.7]} 22... c5 {[%clk 0:02:30.7]} 23. Rf1 {[%clk
0:01:36.6]} 23... c4 {[%clk 0:02:27.9]} 24. Kh1 {[%clk 0:01:33.5]} 24... c3
{[%clk 0:02:26.5]} 25. Nd1 {[%clk 0:01:25.2]} 25... Rb1 {[%clk 0:02:24.7]} 26.
Ne3 {[%clk 0:01:15.2]} 26... Rxf1+ {[%clk 0:02:14.1]} 27. Nxf1 {[%clk
0:01:16.3]} 27... c2 {[%clk 0:02:14.8]} 28. Qe1 {[%clk 0:01:16.6]} 28... Qxd3
{[%clk 0:02:13.5]} 29. Ne3 {[%clk 0:01:17.8]} 29... Nxe4 {[%clk 0:02:13]} 30. h4
{[%clk 0:01:17.9]} 30... Ng3+ {[%clk 0:02:02.6]} 31. Kh2 {[%clk 0:01:13]} 31...
Qxe3 {[%clk 0:02:01.6]} 0-1

[Event "*** Biggest EVER Titled Tuesday"]
[Site "Chess.com"]
[Date "2018.04.17"]
[Round "6"]
[White "FastChance"]
[Black "NIGWAPO"]
[Result "1-0"]
[WhiteElo "2683"]
[BlackElo "2502"]
[TimeControl "180+2"]
[EndTime "14:20:03 PDT"]
[Termination "FastChance won by resignation"]

1. e4 {[%clk 0:03:01.9]} 1... c5 {[%clk 0:03:00.8]} 2. Nf3 {[%clk 0:03:03]} 2...
d6 {[%clk 0:03:01.8]} 3. d4 {[%clk 0:03:04.3]} 3... cxd4 {[%clk 0:03:03.5]} 4.
Nxd4 {[%clk 0:03:06.2]} 4... Nf6 {[%clk 0:03:04.7]} 5. f3 {[%clk 0:03:07.8]}
5... Nc6 {[%clk 0:03:05]} 6. c4 {[%clk 0:03:07.8]} 6... Qb6 {[%clk 0:03:04.8]}
7. Nc2 {[%clk 0:03:02.4]} 7... g6 {[%clk 0:03:05.9]} 8. Nc3 {[%clk 0:03:03.3]}
8... Bg7 {[%clk 0:03:07.5]} 9. Rb1 {[%clk 0:03:02.6]} 9... O-O {[%clk
0:03:08.2]} 10. Be3 {[%clk 0:03:00.7]} 10... Qc7 {[%clk 0:03:09.3]} 11. Be2
{[%clk 0:03:01.3]} 11... Be6 {[%clk 0:03:05.4]} 12. O-O {[%clk 0:02:59.3]} 12...
Rac8 {[%clk 0:03:06.3]} 13. Rc1 {[%clk 0:02:55.7]} 13... Rfd8 {[%clk 0:02:52.7]}
14. Nd4 {[%clk 0:02:55.4]} 14... Nxd4 {[%clk 0:02:53]} 15. Bxd4 {[%clk
0:02:56.2]} 15... Qb8 {[%clk 0:02:53.7]} 16. Qd2 {[%clk 0:02:50.9]} 16... Bxc4
{[%clk 0:02:47.7]} 17. Bxc4 {[%clk 0:02:45.1]} 17... Rxc4 {[%clk 0:02:48.7]} 18.
Nd5 {[%clk 0:02:38]} 18... Rxc1 {[%clk 0:02:36.2]} 19. Rxc1 {[%clk 0:02:23.8]}
19... Nxd5 {[%clk 0:02:36.1]} 20. Bxg7 {[%clk 0:02:25]} 20... Kxg7 {[%clk
0:02:37.3]} 21. Qxd5 {[%clk 0:02:26.2]} 21... Rc8 {[%clk 0:02:37.2]} 22. Qd4+
{[%clk 0:02:21.4]} 22... f6 {[%clk 0:02:37.5]} 23. Rc4 {[%clk 0:02:19.5]} 23...
b6 {[%clk 0:02:36]} 24. Qd5 {[%clk 0:02:12.9]} 24... Rc5 {[%clk 0:02:35.9]} 25.
Rxc5 {[%clk 0:02:05.2]} 25... bxc5 {[%clk 0:02:35.3]} 26. b3 {[%clk 0:02:05.2]}
26... Qb4 {[%clk 0:02:36.2]} 27. Kf1 {[%clk 0:01:56.4]} 27... Qd4 {[%clk
0:02:35.8]} 28. Qxd4 {[%clk 0:01:43.7]} 28... cxd4 {[%clk 0:02:36.6]} 29. b4
{[%clk 0:01:45]} 29... Kf7 {[%clk 0:02:36.9]} 30. a4 {[%clk 0:01:41.7]} 30... e5
{[%clk 0:02:35.6]} 31. b5 {[%clk 0:01:38]} 31... Ke6 {[%clk 0:02:36.5]} 32. a5
{[%clk 0:01:39]} 32... Kd7 {[%clk 0:02:34.7]} 33. Ke2 {[%clk 0:01:32.9]} 33...
f5 {[%clk 0:02:35.5]} 34. exf5 {[%clk 0:01:28.6]} 34... gxf5 {[%clk 0:02:36.2]}
35. g4 {[%clk 0:01:30.2]} 35... fxg4 {[%clk 0:02:22.6]} 36. fxg4 {[%clk
0:01:32.1]} 36... e4 {[%clk 0:02:23.1]} 37. h4 {[%clk 0:01:31.8]} 37... d3+
{[%clk 0:02:24.4]} 38. Ke3 {[%clk 0:01:31.9]} 38... d5 {[%clk 0:02:25.8]} 39. g5
{[%clk 0:01:31.5]} 39... d4+ {[%clk 0:02:27]} 40. Kd2 {[%clk 0:01:31.5]} 40...
Kd6 {[%clk 0:02:27.6]} 41. h5 {[%clk 0:01:31.1]} 41... Kc5 {[%clk 0:02:28.8]}
42. g6 {[%clk 0:01:30.2]} 42... Kc4 {[%clk 0:02:29.9]} 43. g7 {[%clk 0:01:24.1]}
43... e3+ {[%clk 0:02:31]} 44. Kd1 {[%clk 0:01:24.7]} 44... Kc3 {[%clk
0:02:29.5]} 45. g8=Q {[%clk 0:01:24.2]} 45... e2+ {[%clk 0:02:30.1]} 46. Ke1
{[%clk 0:01:25.7]} 1-0

[Event "*** Biggest EVER Titled Tuesday"]
[Site "Chess.com"]
[Date "2018.04.17"]
[Round "6"]
[White "SloLev"]
[Black "saraswathii"]
[Result "1-0"]
[WhiteElo "2379"]
[BlackElo "2266"]
[TimeControl "180+2"]
[EndTime "14:20:03 PDT"]
[Termination "SloLev won by resignation"]

1. e4 {[%clk 0:03:01.9]} 1... c5 {[%clk 0:02:52.8]} 2. c3 {[%clk 0:03:02.7]}
2... e6 {[%clk 0:02:53.8]} 3. d4 {[%clk 0:03:03.3]} 3... cxd4 {[%clk 0:02:54.8]}
4. cxd4 {[%clk 0:03:03]} 4... Nf6 {[%clk 0:02:54.2]} 5. Nc3 {[%clk 0:03:02.7]}
5... d5 {[%clk 0:02:54.4]} 6. e5 {[%clk 0:03:03.1]} 6... Nfd7 {[%clk 0:02:55.1]}
7. Bd3 {[%clk 0:03:04.2]} 7... Nc6 {[%clk 0:02:56]} 8. Nf3 {[%clk 0:03:04.9]}
8... Be7 {[%clk 0:02:52.9]} 9. O-O {[%clk 0:03:00.6]} 9... O-O {[%clk
0:02:52.5]} 10. Bf4 {[%clk 0:02:55.1]} 10... f6 {[%clk 0:02:50.9]} 11. exf6
{[%clk 0:02:51.8]} 11... Bxf6 {[%clk 0:02:45.9]} 12. Bd6 {[%clk 0:02:34.9]}
12... Be7 {[%clk 0:02:43.4]} 13. Bg3 {[%clk 0:02:25.4]} 13... Bf6 {[%clk
0:02:36.1]} 14. Re1 {[%clk 0:02:25.9]} 14... Re8 {[%clk 0:02:33.1]} 15. Nb5
{[%clk 0:02:25.3]} 15... e5 {[%clk 0:02:25.5]} 16. dxe5 {[%clk 0:02:21.7]} 16...
Ndxe5 {[%clk 0:02:01.8]} 17. Nxe5 {[%clk 0:02:16.5]} 17... Bxe5 {[%clk
0:01:59.4]} 18. f4 {[%clk 0:02:01.2]} 18... Bf6 {[%clk 0:01:42.4]} 19. Bxh7+
{[%clk 0:01:58.4]} 19... Kf8 {[%clk 0:01:34]} 20. Rxe8+ {[%clk 0:01:55.2]} 20...
Kxe8 {[%clk 0:01:17.5]} 21. Qh5+ {[%clk 0:01:38.5]} 21... Kf8 {[%clk 0:01:15.1]}
22. Re1 {[%clk 0:01:34]} 22... Bd7 {[%clk 0:00:58.6]} 23. Bg6 {[%clk 0:01:28.9]}
1-0

[Event "*** Biggest EVER Titled Tuesday"]
[Site "Chess.com"]
[Date "2018.04.17"]
[Round "6"]
[White "ENEASZ"]
[Black "SCIM"]
[Result "1-0"]
[WhiteElo "2469"]
[BlackElo "2358"]
[TimeControl "180+2"]
[EndTime "14:20:40 PDT"]
[Termination "ENEASZ won by resignation"]

1. e4 {[%clk 0:03:01.9]} 1... e5 {[%clk 0:02:59.5]} 2. Nf3 {[%clk 0:03:02.6]}
2... Nc6 {[%clk 0:03:00.7]} 3. Bc4 {[%clk 0:03:03.8]} 3... Bc5 {[%clk
0:02:59.8]} 4. c3 {[%clk 0:03:05.2]} 4... Nf6 {[%clk 0:03:00.1]} 5. d4 {[%clk
0:03:06.8]} 5... exd4 {[%clk 0:02:59.2]} 6. O-O {[%clk 0:03:08.7]} 6... d5
{[%clk 0:02:50]} 7. exd5 {[%clk 0:03:08.8]} 7... Nxd5 {[%clk 0:02:48.4]} 8. Qb3
{[%clk 0:03:10.1]} 8... Be6 {[%clk 0:02:39.9]} 9. Qxb7 {[%clk 0:03:10.6]} 9...
Nde7 {[%clk 0:02:10.4]} 10. Bxe6 {[%clk 0:03:11]} 10... fxe6 {[%clk 0:02:10]}
11. cxd4 {[%clk 0:03:12.2]} 11... Bb6 {[%clk 0:02:06.1]} 12. Nc3 {[%clk
0:02:59.4]} 12... O-O {[%clk 0:02:05.4]} 13. Qa6 {[%clk 0:03:00]} 13... Rxf3
{[%clk 0:01:41.1]} 14. gxf3 {[%clk 0:03:01.9]} 14... Nxd4 {[%clk 0:01:41.6]} 15.
Qd3 {[%clk 0:03:01.9]} 15... Qf8 {[%clk 0:01:41.1]} 16. Qe4 {[%clk 0:02:48.1]}
16... Nxf3+ {[%clk 0:01:29.4]} 17. Kg2 {[%clk 0:02:48.2]} 17... Ng6 {[%clk
0:01:28.3]} 18. Be3 {[%clk 0:02:38.4]} 18... Qf6 {[%clk 0:00:47.4]} 19. Qxa8+
{[%clk 0:02:37.2]} 19... Kf7 {[%clk 0:00:44.8]} 20. Qe4 {[%clk 0:02:32.2]} 20...
Ngh4+ {[%clk 0:00:15.6]} 21. Kh1 {[%clk 0:02:31.2]} 21... Qe7 {[%clk 0:00:17.1]}
22. Qf4+ {[%clk 0:02:21.9]} 22... Kg8 {[%clk 0:00:17.2]} 23. Rad1 {[%clk
0:02:22.2]} 23... g5 {[%clk 0:00:15.4]} 24. Qe4 {[%clk 0:02:08.4]} 24... c5
{[%clk 0:00:14.3]} 25. Rg1 {[%clk 0:02:02.5]} 25... h6 {[%clk 0:00:14.2]} 26.
Rg3 {[%clk 0:02:02.1]} 26... Qf6 {[%clk 0:00:13.5]} 27. Rd7 {[%clk 0:01:57.9]}
1-0

[Event "*** Biggest EVER Titled Tuesday"]
[Site "Chess.com"]
[Date "2018.04.17"]
[Round "6"]
[White "calemcc"]
[Black "ChessicallyInclined"]
[Result "1-0"]
[WhiteElo "2245"]
[BlackElo "2146"]
[TimeControl "180+2"]
[EndTime "14:20:47 PDT"]
[Termination "calemcc won by resignation"]

1. d4 {[%clk 0:03:01]} 1... d5 {[%clk 0:02:54.6]} 2. c4 {[%clk 0:03:02.1]} 2...
e6 {[%clk 0:02:55.7]} 3. Nc3 {[%clk 0:03:03.5]} 3... Nf6 {[%clk 0:02:57.3]} 4.
Nf3 {[%clk 0:03:04.6]} 4... Be7 {[%clk 0:02:58.2]} 5. Bg5 {[%clk 0:03:05.6]}
5... O-O {[%clk 0:02:57.1]} 6. e3 {[%clk 0:03:06.8]} 6... Nbd7 {[%clk
0:02:57.7]} 7. Qc2 {[%clk 0:03:07.9]} 7... h6 {[%clk 0:02:58.9]} 8. Bh4 {[%clk
0:03:08.6]} 8... c5 {[%clk 0:02:59.8]} 9. cxd5 {[%clk 0:03:05.4]} 9... Nxd5
{[%clk 0:03:00.6]} 10. Nxd5 {[%clk 0:03:06.2]} 10... Bxh4 {[%clk 0:02:59]} 11.
Nxh4 {[%clk 0:03:05.8]} 11... Qxh4 {[%clk 0:02:53.2]} 12. Nc7 {[%clk 0:03:00.5]}
12... Rb8 {[%clk 0:02:52.2]} 13. d5 {[%clk 0:02:30.9]} 13... Qb4+ {[%clk
0:02:17.5]} 14. Qd2 {[%clk 0:02:29.8]} 14... Qb6 {[%clk 0:01:29.5]} 15. dxe6
{[%clk 0:02:29]} 15... Qxc7 {[%clk 0:01:30]} 16. exd7 {[%clk 0:02:29.2]} 16...
Bxd7 {[%clk 0:01:30.6]} 17. Bc4 {[%clk 0:02:22.5]} 17... Rfd8 {[%clk 0:01:22.3]}
18. Qe2 {[%clk 0:02:14.6]} 18... Qa5+ {[%clk 0:01:21.8]} 19. Kf1 {[%clk
0:02:14.7]} 19... b5 {[%clk 0:01:18.5]} 20. Bd5 {[%clk 0:02:11.3]} 20... Be8
{[%clk 0:01:06.5]} 21. e4 {[%clk 0:02:10.9]} 21... c4 {[%clk 0:00:34.2]} 22. g3
{[%clk 0:02:07.8]} 22... Qc7 {[%clk 0:00:19.5]} 23. Kg2 {[%clk 0:02:07]} 23...
Qc5 {[%clk 0:00:20.8]} 24. Rhd1 {[%clk 0:02:05.1]} 24... a5 {[%clk 0:00:21.6]}
25. Qh5 {[%clk 0:02:04.4]} 25... b4 {[%clk 0:00:19.8]} 26. Bxf7+ {[%clk
0:02:04.8]} 26... Bxf7 {[%clk 0:00:20.7]} 27. Qxc5 {[%clk 0:02:06.4]} 27... Rxd1
{[%clk 0:00:20.4]} 28. Rxd1 {[%clk 0:02:06.8]} 28... a4 {[%clk 0:00:19.2]} 29.
Qa7 {[%clk 0:02:06]} 29... Rc8 {[%clk 0:00:18.4]} 30. Qxa4 {[%clk 0:02:06]}
30... c3 {[%clk 0:00:19.3]} 31. bxc3 {[%clk 0:02:07.9]} 31... bxc3 {[%clk
0:00:20.1]} 32. Rc1 {[%clk 0:02:06.4]} 32... Bg6 {[%clk 0:00:16.5]} 33. Qb3+
{[%clk 0:02:04.3]} 33... Kh8 {[%clk 0:00:15.8]} 34. Rxc3 {[%clk 0:02:04.1]}
34... Bxe4+ {[%clk 0:00:17]} 35. f3 {[%clk 0:02:04.6]} 1-0

[Event "*** Biggest EVER Titled Tuesday"]
[Site "Chess.com"]
[Date "2018.04.17"]
[Round "6"]
[White "StellarChessPro"]
[Black "Noukii"]
[Result "0-1"]
[WhiteElo "2379"]
[BlackElo "2632"]
[TimeControl "180+2"]
[EndTime "14:20:51 PDT"]
[Termination "Noukii won by resignation"]

1. d4 {[%clk 0:03:01.9]} 1... d5 {[%clk 0:02:59]} 2. Nf3 {[%clk 0:03:02.6]} 2...
Nf6 {[%clk 0:02:59.9]} 3. e3 {[%clk 0:03:03.6]} 3... c6 {[%clk 0:03:00.8]} 4. c4
{[%clk 0:03:04.1]} 4... a6 {[%clk 0:03:01.4]} 5. Bd3 {[%clk 0:03:04.9]} 5... Bg4
{[%clk 0:02:57.8]} 6. O-O {[%clk 0:03:05.3]} 6... e6 {[%clk 0:02:56.5]} 7. Nbd2
{[%clk 0:03:02.2]} 7... Nbd7 {[%clk 0:02:50.9]} 8. b3 {[%clk 0:03:03]} 8... Bb4
{[%clk 0:02:50]} 9. Bb2 {[%clk 0:03:03.5]} 9... Bxd2 {[%clk 0:02:49.8]} 10. Qxd2
{[%clk 0:03:04.4]} 10... Bxf3 {[%clk 0:02:51.4]} 11. gxf3 {[%clk 0:03:06.3]}
11... Qe7 {[%clk 0:02:37.5]} 12. a4 {[%clk 0:03:01]} 12... e5 {[%clk 0:02:25.6]}
13. Kh1 {[%clk 0:02:55]} 13... Qe6 {[%clk 0:02:10.8]} 14. Rg1 {[%clk 0:02:52.5]}
14... O-O {[%clk 0:01:54.9]} 15. Rg5 {[%clk 0:02:43.5]} 15... e4 {[%clk
0:01:51.2]} 16. fxe4 {[%clk 0:02:19.7]} 16... Nxe4 {[%clk 0:01:51.3]} 17. Bxe4
{[%clk 0:02:17.4]} 17... Qxe4+ {[%clk 0:01:53.2]} 18. Rg2 {[%clk 0:02:02.3]}
18... f5 {[%clk 0:01:53.9]} 19. Rf1 {[%clk 0:01:39.8]} 19... f4 {[%clk
0:01:51.9]} 20. exf4 {[%clk 0:01:27.9]} 20... Rxf4 {[%clk 0:01:49.3]} 21. Bc1
{[%clk 0:01:07.5]} 21... Raf8 {[%clk 0:01:40.5]} 22. Qd1 {[%clk 0:00:49.8]}
22... Rxf2 {[%clk 0:01:35.6]} 23. Rxf2 {[%clk 0:00:10]} 23... Rxf2 {[%clk
0:01:37.5]} 24. Qg1 {[%clk 0:00:11.6]} 24... Re2 {[%clk 0:01:33.6]} 0-1

[Event "*** Biggest EVER Titled Tuesday"]
[Site "Chess.com"]
[Date "2018.04.17"]
[Round "6"]
[White "toad"]
[Black "Eliwood44"]
[Result "1-0"]
[WhiteElo "2201"]
[BlackElo "2128"]
[TimeControl "180+2"]
[EndTime "14:21:04 PDT"]
[Termination "toad won by resignation"]

1. d4 {[%clk 0:03:01.9]} 1... Nf6 {[%clk 0:02:59]} 2. c4 {[%clk 0:03:03.1]} 2...
e6 {[%clk 0:02:56.3]} 3. g3 {[%clk 0:03:03.8]} 3... d5 {[%clk 0:02:56.5]} 4. Nf3
{[%clk 0:03:04.4]} 4... Be7 {[%clk 0:02:57.4]} 5. Bg2 {[%clk 0:03:04.7]} 5...
O-O {[%clk 0:02:58.7]} 6. O-O {[%clk 0:03:05]} 6... dxc4 {[%clk 0:02:59.9]} 7.
Qc2 {[%clk 0:03:02.7]} 7... a6 {[%clk 0:03:00.3]} 8. a4 {[%clk 0:03:03]} 8...
Bd7 {[%clk 0:02:58.8]} 9. Qxc4 {[%clk 0:03:02.9]} 9... Bc6 {[%clk 0:02:58]} 10.
Bf4 {[%clk 0:03:03.4]} 10... Nbd7 {[%clk 0:02:56.6]} 11. Nc3 {[%clk 0:03:02.3]}
11... Nb6 {[%clk 0:02:57.2]} 12. Qd3 {[%clk 0:03:02.2]} 12... Nbd5 {[%clk
0:02:57.8]} 13. Be5 {[%clk 0:02:53.2]} 13... Nb4 {[%clk 0:02:54.9]} 14. Qd1
{[%clk 0:02:37]} 14... Nfd5 {[%clk 0:02:51.4]} 15. e3 {[%clk 0:02:36.9]} 15...
f6 {[%clk 0:02:48.9]} 16. e4 {[%clk 0:02:26]} 16... Nxc3 {[%clk 0:02:02]} 17.
bxc3 {[%clk 0:02:27.9]} 17... fxe5 {[%clk 0:02:02.9]} 18. cxb4 {[%clk
0:02:27.1]} 18... Bxe4 {[%clk 0:02:01]} 19. Re1 {[%clk 0:02:27.9]} 19... Bxf3
{[%clk 0:01:59.8]} 20. Bxf3 {[%clk 0:02:27.3]} 20... Qxd4 {[%clk 0:02:00.8]} 21.
Qxd4 {[%clk 0:02:22.6]} 21... exd4 {[%clk 0:02:01.5]} 22. Bxb7 {[%clk
0:02:24.3]} 22... Rab8 {[%clk 0:02:01.5]} 23. Bxa6 {[%clk 0:02:25.1]} 23... Bxb4
{[%clk 0:01:59.9]} 24. Rxe6 {[%clk 0:02:15.3]} 24... d3 {[%clk 0:01:59.5]} 25.
Bxd3 {[%clk 0:02:13.7]} 25... Rbd8 {[%clk 0:01:56.3]} 26. Bc4 {[%clk 0:02:08.1]}
26... Kh8 {[%clk 0:01:56.4]} 27. a5 {[%clk 0:02:09.1]} 27... Rd2 {[%clk
0:01:55.5]} 28. a6 {[%clk 0:02:08.1]} 28... Bc5 {[%clk 0:01:49.3]} 29. a7 {[%clk
0:01:26.4]} 29... Rdxf2 {[%clk 0:01:19.9]} 30. Kh1 {[%clk 0:01:22]} 30... Ra8
{[%clk 0:01:14.9]} 31. Bd5 {[%clk 0:01:22.2]} 31... Rff8 {[%clk 0:01:03.1]} 32.
Bxa8 {[%clk 0:01:13]} 32... Rxa8 {[%clk 0:01:03.4]} 33. Rae1 {[%clk 0:01:14.2]}
1-0

[Event "*** Biggest EVER Titled Tuesday"]
[Site "Chess.com"]
[Date "2018.04.17"]
[Round "6"]
[White "bascheyaro"]
[Black "GMMatamoros"]
[Result "0-1"]
[WhiteElo "2659"]
[BlackElo "2514"]
[TimeControl "180+2"]
[EndTime "14:21:09 PDT"]
[Termination "GMMatamoros won by resignation"]

1. d4 {[%clk 0:03:01.9]} 1... e6 {[%clk 0:02:57.7]} 2. Nf3 {[%clk 0:03:03.3]}
2... c5 {[%clk 0:02:56.7]} 3. Bf4 {[%clk 0:03:03.4]} 3... cxd4 {[%clk
0:02:56.4]} 4. Nxd4 {[%clk 0:03:04.7]} 4... e5 {[%clk 0:02:55.8]} 5. e3 {[%clk
0:02:50.6]} 5... exf4 {[%clk 0:02:52.6]} 6. exf4 {[%clk 0:02:52]} 6... Nc6
{[%clk 0:02:53.6]} 7. Nf3 {[%clk 0:02:48.5]} 7... d5 {[%clk 0:02:51.4]} 8. c3
{[%clk 0:02:49.3]} 8... Bc5 {[%clk 0:02:47.1]} 9. Bd3 {[%clk 0:02:49.4]} 9...
Nf6 {[%clk 0:02:47.7]} 10. O-O {[%clk 0:02:50.3]} 10... O-O {[%clk 0:02:49.2]}
11. Nbd2 {[%clk 0:02:50.8]} 11... Qd6 {[%clk 0:02:47.7]} 12. g3 {[%clk
0:02:51.5]} 12... Bh3 {[%clk 0:02:48.5]} 13. Re1 {[%clk 0:02:52.8]} 13... Ng4
{[%clk 0:02:49.6]} 14. Re2 {[%clk 0:02:52.7]} 14... Rae8 {[%clk 0:02:48.7]} 15.
Ng5 {[%clk 0:02:47.1]} 15... Rxe2 {[%clk 0:02:05.1]} 16. Qxe2 {[%clk 0:02:47.6]}
16... Nxf2 {[%clk 0:01:58.6]} 17. Bxh7+ {[%clk 0:02:22.5]} 17... Kh8 {[%clk
0:01:58.9]} 18. Bc2 {[%clk 0:02:08.6]} 18... Bg4 {[%clk 0:01:50.5]} 19. Ndf3
{[%clk 0:02:08]} 19... Nh3+ {[%clk 0:01:36.4]} 20. Kf1 {[%clk 0:02:01.4]} 20...
Nxg5 {[%clk 0:01:35.5]} 21. fxg5 {[%clk 0:02:02.5]} 21... Qd7 {[%clk 0:01:25.9]}
22. Kg2 {[%clk 0:01:59.3]} 22... Re8 {[%clk 0:01:20.1]} 23. Qd3 {[%clk
0:02:00.7]} 23... g6 {[%clk 0:01:21.3]} 24. Ng1 {[%clk 0:01:45.9]} 24... d4
{[%clk 0:01:11.1]} 25. Bb3 {[%clk 0:01:41.9]} 25... Bf5 {[%clk 0:01:08.3]} 26.
Qd2 {[%clk 0:01:34.2]} 26... d3 {[%clk 0:00:59.2]} 27. Rf1 {[%clk 0:01:29.7]}
27... Bh3+ {[%clk 0:00:49.6]} 28. Nxh3 {[%clk 0:01:30.6]} 28... Re2+ {[%clk
0:00:49.5]} 29. Rf2 {[%clk 0:01:31.9]} 29... Bxf2 {[%clk 0:00:47.1]} 30. Qd1
{[%clk 0:01:27.6]} 30... Bb6+ {[%clk 0:00:42.7]} 31. Kf3 {[%clk 0:01:28.8]}
31... Qxh3 {[%clk 0:00:37.6]} 32. Qxd3 {[%clk 0:01:28.5]} 32... Re3+ {[%clk
0:00:32.8]} 33. Qxe3 {[%clk 0:01:29.1]} 33... Bxe3 {[%clk 0:00:34.7]} 34. Be6
{[%clk 0:01:29.3]} 34... Qxe6 {[%clk 0:00:34.7]} 35. h4 {[%clk 0:01:30.1]} 0-1